bitfinex/quotes_BTCUSD_20241004
["timestamp","ask_amount","ask_price","bid_price","bid_amount"]
[1728064813972,0.38521666,62122.0,62121.0,0.00122]
[1728064814192,0.39121666,62122.0,62121.0,0.00222]
[1728064814423,0.51107217,62122.0,62121.0,0.00222]
[1728064814876,0.41607217,62122.0,62121.0,0.00222]
[1728064815096,0.39209966,62122.0,62121.0,0.00222]
[1728064815546,0.4173423,62122.0,62121.0,0.00222]
[1728064815780,0.3214593,62122.0,62121.0,0.00222]
[1728064816311,0.41734674,62122.0,62121.0,0.00222]
[1728064816537,0.39337852,62122.0,62121.0,0.00222]
[1728064816755,0.2214593,62122.0,62121.0,0.00222]
[1728064816982,0.26940817,62122.0,62121.0,0.00222]
[1728064817214,0.2214593,62122.0,62121.0,0.00222]
[1728064817551,0.2154593,62122.0,62121.0,0.00122]
[1728064817647,0.2114593,62122.0,62121.0,0.00122]
[1728064817885,0.2114593,62122.0,62121.0,0.00822]
[1728064818107,0.001,62122.0,62121.0,0.02118415]
[1728064818378,0.161973,62122.0,62121.0,0.02118415]
[1728064818611,0.002,62122.0,62121.0,0.00922]
[1728064818842,0.002,62122.0,62121.0,0.02917892]
[1728064819093,0.002,62122.0,62121.0,0.19015492]
[1728064819310,0.008,62122.0,62121.0,0.22299612]
[1728064819792,0.5624271,62127.0,62121.0,0.02117892]
[1728064819793,0.321933,62125.0,62121.0,0.02117892]
[1728064820017,0.321933,62125.0,62121.0,0.01722]
[1728064820018,0.002,62122.0,62121.0,0.01722]
[1728064820237,0.002,62122.0,62121.0,0.00922]
[1728064820238,0.001,62122.0,62121.0,0.00922]
[1728064820463,0.321928,62126.0,62121.0,0.00122]
[1728064820675,0.001,62122.0,62121.0,0.00922]
[1728064820913,0.161973,62122.0,62121.0,0.00122]
[1728064821155,0.002,62122.0,62121.0,0.00922]
[1728064821392,0.001,62122.0,62121.0,0.00922]
[1728064821627,0.160971,62123.0,62121.0,0.00122]
[1728064821861,0.321933,62125.0,62121.0,0.00922]
[1728064821862,0.160973,62122.0,62121.0,0.00922]
[1728064822101,0.001,62122.0,62121.0,0.02122]
[1728064822337,0.160972,62123.0,62121.0,0.00922]
[1728064822809,0.02623844,62122.0,62121.0,0.02022]
[1728064823274,0.02523844,62122.0,62121.0,0.00922]
[1728064823488,0.02523844,62122.0,62121.0,0.172196]
[1728064823943,0.02623844,62122.0,62121.0,0.180196]
[1728064824174,0.02623844,62122.0,62121.0,0.01922]
[1728064825074,0.02623844,62122.0,62121.0,0.00922]
[1728064825608,0.02723844,62122.0,62121.0,0.02022]
[1728064825844,0.18821144,62122.0,62121.0,0.02022]
[1728064826093,0.02723844,62122.0,62121.0,0.02022]
[1728064826575,0.02723844,62122.0,62121.0,0.181196]
[1728064826809,0.02723844,62122.0,62121.0,0.02022]
[1728064827059,0.18821144,62122.0,62121.0,0.02022]
[1728064827535,0.002,62122.0,62121.0,0.02022]
[1728064827993,0.162973,62122.0,62121.0,0.02022]
[1728064828217,0.002,62122.0,62121.0,0.02022]
[1728064829385,0.002,62122.0,62121.0,0.181196]
[1728064830077,0.002,62122.0,62121.0,0.30931098]
[1728064830299,0.002,62122.0,62121.0,0.38951098]
[1728064830777,0.002,62122.0,62121.0,0.29311098]
[1728064832899,0.002,62122.0,62121.0,0.29294147]
[1728064834117,0.02723704,62122.0,62121.0,0.29294147]
[1728064837081,0.02723704,62122.0,62121.0,0.261396]
[1728064837310,0.02723704,62122.0,62121.0,0.29292908]
[1728064837530,0.02723704,62122.0,62121.0,0.02022]
[1728064837748,0.02723704,62122.0,62121.0,0.181196]
[1728064838217,0.02723704,62122.0,62121.0,0.02022]
[1728064838425,0.002,62122.0,62121.0,0.02022]
[1728064838658,0.002,62122.0,62121.0,0.181196]
[1728064838888,0.002,62122.0,62121.0,0.02022]
[1728064839825,0.002,62122.0,62121.0,0.181196]
[1728064840045,0.002,62122.0,62121.0,0.02022]
[1728064840830,0.261873,62122.0,62121.0,0.02022]
[1728064841067,0.343773,62122.0,62121.0,0.02022]
[1728064841303,0.443773,62122.0,62121.0,0.02022]
[1728064841762,0.46901343,62122.0,62121.0,0.02022]
[1728064841980,0.46801343,62122.0,62121.0,0.00922]
[1728064842217,0.28721343,62122.0,62121.0,0.01022]
[1728064842696,0.260973,62122.0,62121.0,0.00122]
[1728064842949,0.260973,62122.0,62121.0,0.00522]
[1728064843190,0.343373,62122.0,62121.0,0.00522]
[1728064843910,0.1,62122.0,62121.0,0.00522]
[1728064844141,0.160971,62123.0,62121.0,0.00622]
[1728064844359,0.1,62122.0,62121.0,0.00622]
[1728064844599,0.160973,62122.0,62121.0,0.00622]
[1728064845046,0.160973,62122.0,62121.0,0.00522]
[1728064845738,0.18621229,62122.0,62121.0,0.00522]
[1728064847137,0.02523929,62122.0,62121.0,0.00522]
[1728064847574,0.18621229,62122.0,62121.0,0.00522]
[1728064847789,0.18621229,62122.0,62121.0,0.00622]
[1728064848735,0.160973,62122.0,62121.0,0.00622]
[1728064848736,0.338073,62122.0,62121.0,0.00622]
[1728064849685,0.438073,62122.0,62121.0,0.00622]
[1728064850152,0.438073,62122.0,62121.0,0.00222]
[1728064850378,0.438073,62122.0,62121.0,0.00422]
[1728064850603,0.438073,62122.0,62121.0,0.00122]
[1728064851054,0.438073,62122.0,62121.0,0.00322]
[1728064852470,0.439073,62122.0,62121.0,0.00322]
[1728064852948,0.46431345,62122.0,62121.0,0.00322]
[1728064853929,0.86133911,62122.0,62121.0,0.00322]
[1728064854170,0.78762447,62122.0,62121.0,0.00322]
[1728064854415,0.76814188,62122.0,62121.0,0.00322]
[1728064854642,0.439073,62122.0,62121.0,0.00322]
[1728064854884,0.438073,62122.0,62121.0,0.00322]
[1728064855338,0.46508162,62122.0,62121.0,0.00422]
[1728064855568,0.269973,62122.0,62121.0,0.00422]
[1728064855804,0.29521463,62122.0,62121.0,0.00422]
[1728064856405,0.29521463,62122.0,62121.0,0.00222]
[1728064856641,0.30021463,62122.0,62121.0,0.00222]
[1728064856861,0.30021463,62122.0,62121.0,0.00122]
[1728064857074,0.29421463,62122.0,62121.0,0.00222]
[1728064857290,0.29421463,62122.0,62121.0,0.00422]
[1728064857526,0.28621463,62122.0,62121.0,0.00122]
[1728064857977,0.28921463,62122.0,62121.0,0.00122]
[1728064858201,0.29121463,62122.0,62121.0,0.00122]
[1728064858715,0.28621463,62122.0,62121.0,0.00122]
[1728064859174,0.260973,62122.0,62121.0,0.00122]
[1728064859391,0.160973,62122.0,62121.0,0.00122]
[1728064859660,0.160972,62123.0,62121.0,0.00122]
[1728064859906,0.162973,62122.0,62121.0,0.00222]
[1728064860372,0.160973,62122.0,62121.0,0.00122]
[1728064860611,0.161973,62122.0,62121.0,0.00822]
[1728064860855,0.161973,62122.0,62121.0,0.01222]
[1728064863950,0.001,62122.0,62121.0,0.01222]
[1728064864172,0.161973,62122.0,62121.0,0.01222]
[1728064865376,0.001,62122.0,62121.0,0.01222]
[1728064868827,0.161973,62122.0,62121.0,0.01222]
[1728064869724,0.16191218,62122.0,62121.0,0.01222]
[1728064871301,0.18715209,62122.0,62121.0,0.01222]
[1728064875593,0.16191218,62122.0,62121.0,0.01222]
[1728064879673,0.18715341,62122.0,62121.0,0.01222]
[1728064880125,0.18715341,62122.0,62121.0,0.03180254]
[1728064880349,0.02618041,62122.0,62121.0,0.03180254]
[1728064880797,0.18715341,62122.0,62121.0,0.03180254]
[1728064881953,0.02618041,62122.0,62121.0,0.03180254]
[1728064882181,0.18715341,62122.0,62121.0,0.03180254]
[1728064882847,0.18715341,62122.0,62121.0,0.01222]
[1728064883056,0.21239327,62122.0,62121.0,0.01222]
[1728064883932,0.21239327,62122.0,62121.0,0.03176996]
[1728064884143,0.18715341,62122.0,62121.0,0.01222]
[1728064884350,0.18715341,62122.0,62121.0,0.03177515]
[1728064886325,0.02618041,62122.0,62121.0,0.19275115]
[1728064886586,0.02618041,62122.0,62121.0,0.45964768]
[1728064886847,0.00093918,62122.0,62121.0,0.5953609]
[1728064887165,0.00093918,62122.0,62121.0,0.66666273]
[1728064887372,0.00093918,62122.0,62121.0,0.6143609]
[1728064887842,0.00164,62128.0,62127.0,0.24316]
[1728064888067,0.00164,62128.0,62127.0,0.4871249]
[1728064889215,0.00164,62128.0,62127.0,0.48643458]
[1728064889446,0.00264,62128.0,62127.0,0.49943458]
[1728064889888,0.00364,62128.0,62127.0,0.51343458]
[1728064890320,0.00264,62128.0,62127.0,0.49943458]
[1728064890531,0.00364,62128.0,62127.0,0.51343458]
[1728064892284,0.00364,62128.0,62127.0,0.47491588]
[1728064892705,0.00364,62128.0,62127.0,0.51348911]
[1728064892943,0.00364,62128.0,62127.0,0.47491588]
[1728064893183,0.00364,62128.0,62127.0,0.51348911]
[1728064893463,0.00364,62128.0,62127.0,0.47491588]
[1728064893692,0.00364,62128.0,62127.0,0.51348911]
[1728064893919,0.00364,62128.0,62127.0,0.60858911]
[1728064895288,0.00364,62128.0,62127.0,0.57001588]
[1728064896168,0.00364,62128.0,62127.0,0.57001112]
[1728064897579,0.02523411,62136.0,62135.0,0.160939]
[1728064897815,0.2405041,62141.0,62140.0,0.160926]
[1728064898046,0.2405041,62141.0,62140.0,0.18018059]
[1728064898539,0.2405041,62148.0,62147.0,0.160908]
[1728064898765,0.2405041,62148.0,62147.0,0.36565912]
[1728064898987,0.160893,62153.0,62147.0,0.18549653]
[1728064899199,0.02522951,62154.0,62152.0,0.160894]
[1728064899427,0.02522951,62154.0,62151.0,0.18549653]
[1728064899641,0.18612051,62154.0,62151.0,0.18549653]
[1728064900154,0.02522951,62154.0,62151.0,0.18549653]
[1728064900383,0.02522951,62154.0,62153.0,0.160893]
[1728064900618,0.02522951,62154.0,62151.0,0.34639353]
[1728064900619,0.18612051,62154.0,62151.0,0.34639353]
[1728064900870,0.02522951,62154.0,62153.0,0.160893]
[1728064901090,0.02522951,62154.0,62152.0,0.003]
[1728064901321,0.18612051,62154.0,62152.0,0.003]
[1728064901547,0.336093,62153.0,62152.0,0.003]
[1728064902234,0.36132026,62153.0,62152.0,0.003]
[1728064902523,0.160895,62152.0,62151.0,0.005]
[1728064903010,0.321796,62152.0,62147.0,0.34640453]
[1728064903223,0.1609,62151.0,62148.0,0.160906]
[1728064903435,0.160902,62150.0,62147.0,0.18549653]
[1728064903649,0.160902,62150.0,62147.0,0.34640353]
[1728064903855,0.160899,62151.0,62147.0,0.34640353]
[1728064904060,0.160899,62151.0,62147.0,0.18549653]
[1728064904263,0.160899,62151.0,62147.0,0.35040353]
[1728064904896,0.160902,62150.0,62147.0,0.18949653]
[1728064905076,0.20042726,62153.0,62147.0,0.35040353]
[1728064905314,0.1609,62151.0,62147.0,0.35040353]
[1728064905519,0.160901,62150.0,62147.0,0.34640353]
[1728064905729,0.160905,62149.0,62147.0,0.19449653]
[1728064905956,0.160905,62149.0,62147.0,0.18549653]
[1728064906191,0.160899,62151.0,62148.0,0.160905]
[1728064906657,0.160906,62148.0,62147.0,0.19249653]
[1728064906878,0.160902,62150.0,62147.0,0.35540353]
[1728064907100,0.160902,62150.0,62147.0,0.20149653]
[1728064907321,0.160906,62148.0,62147.0,0.016]
[1728064908010,0.160906,62148.0,62147.0,0.007]
[1728064908445,0.321803,62150.0,62144.0,0.18549653]
[1728064908666,0.160909,62147.0,62144.0,0.34641253]
[1728064908928,0.160907,62148.0,62147.0,0.019]
[1728064909342,0.160907,62148.0,62147.0,0.011]
[1728064909813,0.321811,62149.0,62144.0,0.006]
[1728064909814,0.160913,62145.0,62144.0,0.006]
[1728064910026,0.160913,62145.0,62140.0,0.01900321]
[1728064910027,0.16092,62143.0,62140.0,0.01900321]
[1728064910252,0.16092,62143.0,62140.0,0.17992921]
[1728064910463,0.160917,62144.0,62140.0,0.17992921]
[1728064910702,0.321825,62146.0,62140.0,0.01900321]
[1728064910941,0.160909,62147.0,62144.0,0.160915]
[1728064911165,0.1608266,62147.0,62144.0,0.160915]
[1728064911423,0.1608266,62147.0,62143.0,0.34641353]
[1728064911622,0.321811,62149.0,62143.0,0.34641353]
[1728064911830,0.160911,62146.0,62143.0,0.34641353]
[1728064912060,0.160911,62146.0,62145.0,0.18549653]
[1728064912299,0.321811,62149.0,62145.0,0.18549653]
[1728064912534,0.160911,62146.0,62145.0,0.18549653]
[1728064912810,0.16091,62147.0,62145.0,0.18549653]
[1728064913256,0.160911,62146.0,62145.0,0.19449653]
[1728064913471,0.190911,62146.0,62145.0,0.19449653]
[1728064913890,0.03,62146.0,62145.0,0.19449653]
[1728064914131,0.190911,62146.0,62145.0,0.19449653]
[1728064914581,0.21613983,62146.0,62145.0,0.18549653]
[1728064914800,0.05522883,62146.0,62145.0,0.19249653]
[1728064915478,0.05522883,62146.0,62145.0,0.20649653]
[1728064915915,0.21613983,62146.0,62145.0,0.20149653]
[1728064916363,0.21613983,62146.0,62145.0,0.20749653]
[1728064916911,0.21613983,62146.0,62145.0,0.022]
[1728064918296,0.73194393,62146.0,62145.0,0.022]
[1728064918536,0.466211,62146.0,62145.0,0.022]
[1728064918974,0.466211,62146.0,62145.0,0.016]
[1728064919208,0.160934,62137.0,62136.0,0.00082]
[1728064919448,0.160934,62137.0,62136.0,0.01994795]
[1728064920380,0.160934,62137.0,62136.0,0.00082]
[1728064921043,0.160934,62137.0,62136.0,0.01992623]
[1728064921261,0.160934,62137.0,62136.0,0.00082]
[1728064921487,0.160934,62137.0,62136.0,0.0199274]
[1728064921731,0.18616594,62137.0,62136.0,0.00482]
[1728064922171,0.18616594,62137.0,62136.0,0.01182]
[1728064922400,0.02523194,62137.0,62136.0,0.01182]
[1728064922874,0.02523194,62137.0,62136.0,0.172757]
[1728064923139,0.02523194,62137.0,62136.0,0.19188045]
[1728064924710,0.04523194,62137.0,62136.0,0.19188045]
[1728064926329,0.04523194,62137.0,62136.0,0.18002197]
[1728064928315,0.02,62137.0,62136.0,0.18002197]
[1728064930110,0.02,62137.0,62136.0,0.160937]
[1728064930333,0.02,62137.0,62136.0,0.155937]
[1728064930566,0.0199156,62137.0,62136.0,0.155937]
[1728064931287,0.0199156,62137.0,62136.0,0.26909987]
[1728064933141,0.0199156,62137.0,62136.0,0.238537]
[1728064933358,0.0199156,62137.0,62136.0,0.26894369]
[1728064933910,0.0199156,62137.0,62136.0,0.27294369]
[1728064934124,0.0199156,62137.0,62136.0,0.242537]
[1728064934325,0.0199156,62137.0,62136.0,0.26893884]
[1728064934728,0.0199156,62137.0,62136.0,0.27993884]
[1728064935128,0.0199156,62137.0,62136.0,0.29293884]
[1728064937475,0.04514572,62137.0,62136.0,0.29293884]
[1728064937684,0.04514572,62137.0,62136.0,0.29375884]
[1728064938249,0.04514572,62137.0,62136.0,0.05522184]
[1728064938450,0.21634572,62137.0,62136.0,0.04376228]
[1728064938669,0.37727972,62137.0,62136.0,0.04376228]
[1728064939608,0.37727972,62137.0,62136.0,0.02482]
[1728064940307,0.37727972,62137.0,62136.0,0.01382]
[1728064940519,0.37727972,62137.0,62136.0,0.01582]
[1728064940979,0.37727972,62137.0,62136.0,0.00082]
[1728064941397,0.38127972,62137.0,62136.0,0.00582]
[1728064941585,0.38127972,62137.0,62136.0,0.00182]
[1728064941805,0.38527972,62137.0,62136.0,0.00182]
[1728064942231,0.38127972,62137.0,62136.0,0.00182]
[1728064942458,0.38427972,62137.0,62136.0,0.00182]
[1728064942676,0.4055143,62137.0,62136.0,0.00082]
[1728064943117,0.4105143,62137.0,62136.0,0.00082]
[1728064943602,0.4055143,62137.0,62136.0,0.00082]
[1728064943825,0.4095143,62137.0,62136.0,0.00082]
[1728064944034,0.5518169,62137.0,62136.0,0.00082]
[1728064944245,0.4095143,62137.0,62136.0,0.00082]
[1728064948528,0.38427972,62137.0,62136.0,0.00082]
[1728064949205,0.37727972,62137.0,62136.0,0.00082]
[1728064949693,0.38027972,62137.0,62136.0,0.00082]
[1728064949937,0.38191972,62137.0,62136.0,0.00082]
[1728064950877,0.37991972,62137.0,62136.0,0.00082]
[1728064951421,0.37891972,62137.0,62136.0,0.00082]
[1728064951651,0.37891972,62137.0,62136.0,0.00182]
[1728064951873,0.37891972,62137.0,62136.0,0.00082]
[1728064952109,0.37891972,62137.0,62136.0,0.00382]
[1728064953045,0.37891972,62137.0,62136.0,0.00482]
[1728064953973,0.37891972,62137.0,62136.0,0.00382]
[1728064954294,0.37891972,62137.0,62136.0,0.00082]
[1728064954836,0.38091972,62137.0,62136.0,0.00082]
[1728064955087,0.40615446,62137.0,62136.0,0.00082]
[1728064955280,0.40915446,62137.0,62136.0,0.00082]
[1728064956206,0.69165099,62137.0,62136.0,0.00082]
[1728064956696,0.71489044,62137.0,62136.0,0.00082]
[1728064956930,0.73789044,62137.0,62136.0,0.00082]
[1728064957158,0.68941625,62137.0,62136.0,0.00082]
[1728064957890,0.71465407,62137.0,62136.0,0.00082]
[1728064958162,0.71165407,62137.0,62136.0,0.00082]
[1728064958398,0.71965407,62137.0,62136.0,0.00182]
[1728064958638,0.71765407,62137.0,62136.0,0.00182]
[1728064958839,0.72365407,62137.0,62136.0,0.00282]
[1728064959301,0.81944073,62137.0,62136.0,0.00282]
[1728064960504,0.6109442,62137.0,62136.0,0.00282]
[1728064960752,0.56304826,62137.0,62136.0,0.00282]
[1728064961000,0.51515754,62137.0,62136.0,0.00282]
[1728064962940,0.31871972,62137.0,62136.0,0.00282]
[1728064963658,0.31071972,62137.0,62136.0,0.00182]
[1728064964139,0.31471972,62137.0,62136.0,0.00182]
[1728064964610,0.30871972,62137.0,62136.0,0.00082]
[1728064965821,0.30471972,62137.0,62136.0,0.00082]
[1728064966062,0.30671972,62137.0,62136.0,0.00082]
[1728064966565,0.30471972,62137.0,62136.0,0.00082]
[1728064966782,0.30771972,62137.0,62136.0,0.00082]
[1728064967238,0.30971972,62137.0,62136.0,0.00082]
[1728064969300,0.56484337,62137.0,62136.0,0.00082]
[1728064969554,0.78041593,62137.0,62136.0,0.00082]
[1728064969796,0.56484337,62137.0,62136.0,0.00082]
[1728064970009,0.56210137,62137.0,62136.0,0.00082]
[1728064970474,0.55710137,62137.0,62136.0,0.00082]
[1728064970981,0.57310137,62137.0,62136.0,0.00282]
[1728064971223,0.56610137,62137.0,62136.0,0.00182]
[1728064971739,0.57310137,62137.0,62136.0,0.00282]
[1728064971941,0.52462718,62137.0,62136.0,0.00282]
[1728064972155,0.51562718,62137.0,62136.0,0.00182]
[1728064972622,0.51562718,62137.0,62136.0,0.00282]
[1728064972623,0.52462718,62137.0,62136.0,0.00282]
[1728064972858,0.54986712,62137.0,62136.0,0.00282]
[1728064973083,0.95355793,62137.0,62136.0,0.00282]
[1728064973321,0.54986712,62137.0,62136.0,0.00282]
[1728064973547,0.54791766,62137.0,62136.0,0.00282]
[1728064974031,0.66762421,62137.0,62136.0,0.00282]
[1728064974245,0.66762378,62137.0,62136.0,0.00282]
[1728064975825,0.64369296,62137.0,62136.0,0.00282]
[1728064976043,0.59674923,62137.0,62136.0,0.00282]
[1728064976304,0.57280657,62137.0,62136.0,0.00282]
[1728064976514,0.52491766,62137.0,62136.0,0.00282]
[1728064977239,0.59580657,62137.0,62136.0,0.00282]
[1728064977478,0.54791766,62137.0,62136.0,0.00282]
[1728064977714,0.64369296,62137.0,62136.0,0.00282]
[1728064977978,0.54791766,62137.0,62136.0,0.00282]
[1728064978221,0.61975752,62137.0,62136.0,0.00282]
[1728064978444,0.61845302,62137.0,62136.0,0.00282]
[1728064979358,0.52267772,62137.0,62136.0,0.00282]
[1728064979570,0.61849036,62137.0,62136.0,0.00282]
[1728064979782,0.52267772,62137.0,62136.0,0.00282]
[1728064980007,0.64238384,62137.0,62136.0,0.00282]
[1728064980440,0.52267772,62137.0,62136.0,0.00282]
[1728064980886,0.52462718,62137.0,62136.0,0.00282]
[1728064981383,0.16097,62123.0,62122.0,0.00082]
[1728064981630,0.33717,62123.0,62122.0,0.00082]
[1728064982092,0.26097,62123.0,62122.0,0.00082]
[1728064982543,0.16097,62123.0,62122.0,0.00082]
[1728064982762,0.18621054,62123.0,62122.0,0.00582]
[1728064983553,0.02524054,62123.0,62122.0,0.00582]
[1728064983777,0.18621054,62123.0,62122.0,0.00582]
[1728064983998,0.18721054,62123.0,62122.0,0.01282]
[1728064988284,0.16197,62123.0,62122.0,0.01282]
[1728064988976,0.25967,62123.0,62122.0,0.01282]
[1728064991303,0.16197,62123.0,62122.0,0.01282]
[1728064991986,0.2099574,62123.0,62122.0,0.01282]
[1728064992271,0.23395111,62123.0,62122.0,0.01282]
[1728064992941,0.33395111,62123.0,62122.0,0.01282]
[1728064994072,0.26197,62123.0,62122.0,0.01282]
[1728064994289,0.33395111,62123.0,62122.0,0.01282]
[1728064994952,0.26197,62123.0,62122.0,0.01282]
[1728064995322,0.33395111,62123.0,62122.0,0.01282]
[1728064995521,0.26197,62123.0,62122.0,0.01282]
[1728064996132,0.3099313,62123.0,62122.0,0.01282]
[1728064996623,0.26197,62123.0,62122.0,0.01282]
[1728064998017,0.28721298,62123.0,62122.0,0.01282]
[1728064999787,0.41257828,62123.0,62122.0,0.01282]
[1728065000016,0.41258101,62123.0,62122.0,0.01282]
[1728065000480,0.36461298,62123.0,62122.0,0.01282]
[1728065000705,0.53566031,62123.0,62122.0,0.01282]
[1728065001214,0.46371298,62123.0,62122.0,0.01282]
[1728065001431,0.55965598,62123.0,62122.0,0.01282]
[1728065001662,0.46371298,62123.0,62122.0,0.01282]
[1728065001889,0.28721298,62123.0,62122.0,0.01282]
[1728065002798,0.3591782,62123.0,62122.0,0.01282]
[1728065003063,0.28721298,62123.0,62122.0,0.01281971]
[1728065003295,0.33518959,62123.0,62122.0,0.01281971]
[1728065005460,0.28721298,62123.0,62122.0,0.01281971]
[1728065005682,0.38315598,62123.0,62122.0,0.01281971]
[1728065006161,0.38315363,62123.0,62122.0,0.01281971]
[1728065007089,0.31245314,62123.0,62122.0,0.01281971]
[1728065009242,0.73284335,62123.0,62122.0,0.01281971]
[1728065009466,0.67400951,62123.0,62122.0,0.01281971]
[1728065010222,0.67400951,62123.0,62122.0,0.00781971]
[1728065010461,0.67600951,62123.0,62122.0,0.00081971]
[1728065010700,0.68300951,62123.0,62122.0,0.00181971]
[1728065010941,0.84319622,62123.0,62122.0,0.00181971]
[1728065011195,0.68000951,62123.0,62122.0,0.00181971]
[1728065011464,0.68995897,62123.0,62122.0,0.00281971]
[1728065012486,0.71520422,62123.0,62122.0,0.00281971]
[1728065012937,0.85314568,62123.0,62122.0,0.00281971]
[1728065013643,0.85119622,62123.0,62122.0,0.00281971]
[1728065013889,0.64640025,62123.0,62122.0,0.00281971]
[1728065014102,0.50251298,62123.0,62122.0,0.00281971]
[1728065014325,0.64640025,62123.0,62122.0,0.00281971]
[1728065014815,0.68800951,62123.0,62122.0,0.00281971]
[1728065015291,0.85314568,62123.0,62122.0,0.00281971]
[1728065016026,0.87839023,62123.0,62122.0,0.00281971]
[1728065017968,0.71325406,62123.0,62122.0,0.00281971]
[1728065018427,0.68800951,62123.0,62122.0,0.00281971]
[1728065018665,0.8318225,62123.0,62122.0,0.00281971]
[1728065018907,0.68800951,62123.0,62122.0,0.00281971]
[1728065019121,0.68995897,62123.0,62122.0,0.00281971]
[1728065019357,0.68800951,62123.0,62122.0,0.00281971]
[1728065019577,0.83178117,62123.0,62122.0,0.00281971]
[1728065019808,0.90931205,62123.0,62122.0,0.00281971]
[1728065020055,0.91126151,62123.0,62122.0,0.00281971]
[1728065020734,0.91290351,62123.0,62122.0,0.00281971]
[1728065021438,0.76718239,62123.0,62122.0,0.00281971]
[1728065021633,0.93814807,62123.0,62122.0,0.00281971]
[1728065022331,0.93619861,62123.0,62122.0,0.00281971]
[1728065022567,0.91095405,62123.0,62122.0,0.00281971]
[1728065022834,0.91290351,62123.0,62122.0,0.00281971]
[1728065023739,0.91095405,62123.0,62122.0,0.00281971]
[1728065023984,0.91290351,62123.0,62122.0,0.00281971]
[1728065024855,0.91095405,62123.0,62122.0,0.00281971]
[1728065025544,0.93619858,62123.0,62122.0,0.00281971]
[1728065025765,0.8586677,62123.0,62122.0,0.00281971]
[1728065026009,0.71489604,62123.0,62122.0,0.00281971]
[1728065028544,0.68965151,62123.0,62122.0,0.00281971]
[1728065030866,0.83341196,62123.0,62122.0,0.00281971]
[1728065031576,0.68965151,62123.0,62122.0,0.00281971]
[1728065032013,0.85283822,62123.0,62122.0,0.00281971]
[1728065033152,0.87808277,62123.0,62122.0,0.00281971]
[1728065033394,0.85869206,62123.0,62122.0,0.00281971]
[1728065034752,0.8586928,62123.0,62122.0,0.00281971]
[1728065035637,0.71489606,62123.0,62122.0,0.00281971]
[1728065038159,0.68965151,62123.0,62122.0,0.00281971]
[1728065038840,0.69160097,62123.0,62122.0,0.00281971]
[1728065039773,0.69378718,62123.0,62122.0,0.00281971]
[1728065040920,0.74226137,62123.0,62122.0,0.00281971]
[1728065042545,5.84099958,62123.0,62122.0,7.1e-07]
[1728065042778,0.78890927,62123.0,62122.0,7.1e-07]
[1728065043002,0.69378718,62123.0,62122.0,7.1e-07]
[1728065043546,0.57199217,62123.0,62122.0,7.1e-07]
[1728065043764,0.48115498,62123.0,62122.0,7.1e-07]
[1728065043992,0.30285498,62123.0,62122.0,7.1e-07]
[1728065044436,0.29585498,62123.0,62122.0,7.1e-07]
[1728065044665,0.29585498,62123.0,62121.0,0.00122]
[1728065044666,0.260973,62122.0,62121.0,0.00122]
[1728065044934,0.38276801,62122.0,62121.0,0.00122]
[1728065045154,0.40771747,62122.0,62121.0,0.00122]
[1728065045581,0.43296243,62122.0,62121.0,0.00122]
[1728065045795,0.49676505,62122.0,62121.0,0.00122]
[1728065046008,0.82179848,62122.0,62121.0,0.00122]
[1728065046234,0.82979848,62122.0,62121.0,0.00122]
[1728065047391,0.83684902,62122.0,62121.0,0.00122]
[1728065047641,0.82884902,62122.0,62121.0,0.00122]
[1728065047849,0.83884902,62122.0,62121.0,0.00122]
[1728065048060,0.84984902,62122.0,62121.0,0.00122]
[1728065048515,0.65275734,62122.0,62121.0,0.00122]
[1728065048758,0.66475734,62122.0,62121.0,0.00122]
[1728065049211,0.47857063,62122.0,62121.0,0.00122]
[1728065050564,0.6635323,62122.0,62121.0,0.00122]
[1728065051298,0.9040364,62122.0,62121.0,0.00122]
[1728065051547,0.62934482,62122.0,62121.0,0.00122]
[1728065051784,0.65653917,62122.0,62121.0,0.00122]
[1728065052256,0.81972588,62122.0,62121.0,0.00122]
[1728065052742,0.77125169,62122.0,62121.0,0.00122]
[1728065055481,4.24025169,62122.0,62121.0,0.00122]
[1728065055713,4.28689959,62122.0,62121.0,0.00122]
[1728065056412,4.28689959,62122.0,62110.0,0.00082]
[1728065056413,0.321985,62115.0,62110.0,0.00082]
[1728065056633,0.80806276,62111.0,62110.0,0.00082]
[1728065056863,5.69594909,62111.0,62110.0,0.00082]
[1728065057089,5.79107118,62111.0,62110.0,0.00082]
[1728065057322,6.13973897,62111.0,62110.0,0.00082]
[1728065057553,6.30292568,62111.0,62110.0,0.00082]
[1728065058014,6.31692568,62111.0,62110.0,0.00082]
[1728065058229,6.34217833,62111.0,62110.0,0.00082]
[1728065059185,6.35617833,62111.0,62110.0,0.00082]
[1728065059402,6.34217833,62111.0,62110.0,0.00082]
[1728065059641,6.34217833,62111.0,62110.0,1e-06]
[1728065059642,6.41616631,62111.0,62110.0,1e-06]
[1728065059874,6.39091654,62111.0,62110.0,1e-06]
[1728065060133,6.59219877,62111.0,62110.0,1e-06]
[1728065060365,6.36117833,62111.0,62110.0,1e-06]
[1728065060581,6.39191654,62111.0,62110.0,1e-06]
[1728065060825,6.35717833,62111.0,62110.0,1e-06]
[1728065061043,6.35717833,62111.0,62089.0,0.2405041]
[1728065061044,0.46037446,62102.0,62101.0,1e-06]
[1728065061259,5.80641734,62102.0,62101.0,1e-06]
[1728065061483,5.90153943,62102.0,62101.0,1e-06]
[1728065063068,5.92679556,62102.0,62101.0,1e-06]
[1728065063293,5.89232137,62102.0,62101.0,1e-06]
[1728065063514,5.84567347,62102.0,62101.0,1e-06]
[1728065063988,6.00720088,62102.0,62101.0,1e-06]
[1728065064446,4.35975563,62102.0,62101.0,1e-06]
[1728065064665,2.20822822,62102.0,62101.0,1e-06]
[1728065064886,2.22222822,62102.0,62101.0,1e-06]
[1728065065802,0.33728113,62102.0,62101.0,1e-06]
[1728065066253,0.261056,62090.0,62089.0,0.2184251]
[1728065066741,0.261061,62088.0,62087.0,0.082]
[1728065068770,0.265061,62088.0,62087.0,0.1802]
[1728065069240,0.268061,62088.0,62087.0,0.1802]
[1728065069679,0.261061,62088.0,62087.0,0.1802]
[1728065070140,0.261061,62088.0,62087.0,0.181021]
[1728065070373,0.262061,62088.0,62087.0,0.181021]
[1728065071041,0.162061,62088.0,62087.0,0.181021]